fUSD/lending_fUSD_20250720
["ID","MTS","AMOUNT","RATE_DAILY","PERIOD"]
[373550946,1753038215452,951.91,0.00030136,120]
[373550947,1753038215819,480.0,0.00030136,120]
[373550948,1753038216003,480.0,0.00030136,120]
[373550949,1753038217533,480.0,0.00030136,120]
[373550950,1753038217636,56660.02,0.00030136,120]
[373550951,1753038217799,2895.09,0.00030136,120]
[373550952,1753038217922,480.0,0.00030136,120]
[373550953,1753038218208,564.96,0.00030136,120]
[373550954,1753038220900,1070.61,0.00030136,120]
[373550955,1753038221422,480.0,0.00030136,120]
[373550956,1753038221877,480.0,0.00030136,120]
[373550957,1753038221984,480.0,0.00030136,120]
[373550958,1753038222684,480.0,0.00030136,120]
[373550959,1753038222742,9202.41,0.00030136,120]
[373550960,1753038222904,480.0,0.00030136,120]
[373550961,1753038223208,734.64,0.00030136,120]
[373550962,1753038223534,3321.51,0.00030136,120]
[373550964,1753038223797,4963.38,0.00030136,120]
[373550965,1753038224199,589.47357963,0.00030136,120]
[373550966,1753038225418,480.0,0.00030136,120]
[373550967,1753038225452,753.4,0.00030136,120]
[373550968,1753038225621,480.0,0.00030136,120]
[373550969,1753038226081,341.89572066,0.00030136,120]
[373550970,1753038226210,649.93,0.00030136,120]
[373550971,1753038226507,480.0,0.00030136,120]
[373550972,1753038227225,480.0,0.00030136,120]
[373550973,1753038227374,1052.65,0.00030136,120]
[373550974,1753038227624,1156.34,0.00030136,120]
[373550975,1753038227755,852.15,0.00030136,120]
[373550976,1753038228131,290.33,0.00013699,2]
[373550977,1753038228489,5386.94,0.00030136,120]
[373550978,1753038228531,480.0,0.00030136,120]
[373550979,1753038229267,480.0,0.00030136,120]
[373550980,1753038230570,480.0,0.00030136,120]
[373550981,1753038231644,480.0,0.00030136,120]
[373550982,1753038231926,480.0,0.00030136,120]
[373550983,1753038232641,480.0,0.00030136,120]
[373550984,1753038233419,3672.4,0.00030136,120]
[373550985,1753038233450,3244.45,0.00030136,120]
[373550986,1753038233508,480.0,0.00030136,120]
[373550987,1753038233802,928.5,0.00030136,120]
[373550988,1753038234723,480.0,0.00030136,120]
[373550989,1753038235435,480.0,0.00030136,120]
[373550990,1753038236144,480.0,0.00030136,120]
[373550991,1753038236540,11187.75,0.00030136,120]
[373550992,1753038236570,480.0,0.00030136,120]
[373550993,1753038236784,480.0,0.00030136,120]
[373550994,1753038237108,3227.09,0.00030136,120]
[373550995,1753038238115,5294.51,0.00030136,120]
[373550996,1753038238350,480.0,0.00030136,120]
[373550997,1753038238643,1107.73,0.00030136,120]
[373550998,1753038238673,480.0,0.00030136,120]
[373550999,1753038239019,3498.03,0.00030136,120]
[373551000,1753038239070,480.0,0.00030136,120]
[373551001,1753038239279,884.94,0.00030136,120]
[373551002,1753038240130,480.0,0.00030136,120]
[373551003,1753038241262,2516.28,0.00030136,120]
[373551004,1753038242110,2936.44,0.00030136,120]
[373551005,1753038242261,480.0,0.00030136,120]
[373551006,1753038242430,480.0,0.00030136,120]
[373551007,1753038242559,480.0,0.00030136,120]
[373551008,1753038242639,480.0,0.00030136,120]
[373551009,1753038244623,500.0,0.00030136,120]
[373551010,1753038245236,500.0,0.00030136,120]
[373551011,1753038245322,3514.97,0.00030136,120]
[373551012,1753038245379,500.0,0.00030136,120]
[373551013,1753038245426,500.0,0.00030136,120]
[373551014,1753038245587,500.0,0.00030136,120]
[373551015,1753038245643,480.0,0.00030136,120]
[373551016,1753038245817,500.0,0.00030136,120]
[373551017,1753038245927,8956.42,0.00030136,120]
[373551018,1753038245965,480.0,0.00030136,120]
[373551019,1753038246118,500.0,0.00030136,120]
[373551020,1753038246332,500.0,0.00030136,120]
[373551021,1753038246555,500.0,0.00030136,120]
[373551022,1753038246763,500.0,0.00030136,120]
[373551023,1753038246879,500.0,0.00030136,120]
[373551024,1753038246916,480.0,0.00030136,120]
[373551025,1753038246954,480.0,0.00030136,120]
[373551026,1753038247022,736.93,0.00030136,120]
[373551027,1753038247395,500.0,0.00030136,120]
[373551028,1753038247473,803.27,0.00030136,120]
[373551029,1753038247630,500.0,0.00030136,120]
[373551030,1753038247879,500.0,0.00030136,120]
[373551031,1753038248111,500.0,0.00030136,120]
[373551032,1753038248277,1004.91,0.00030136,120]
[373551033,1753038248350,500.0,0.00030136,120]
[373551034,1753038248612,500.0,0.00030136,120]
[373551035,1753038248690,554.18,0.00030136,120]
[373551036,1753038248832,161.17,0.000229,31]
[373551037,1753038248864,480.0,0.00030136,120]
[373551038,1753038248895,500.0,0.00030136,120]
[373551039,1753038248959,161.17,0.000229,31]
[373551040,1753038248993,480.0,0.00030136,120]
[373551041,1753038249057,161.17,0.000229,31]
[373551042,1753038249108,161.17,0.000229,31]
[373551043,1753038249151,161.09204153,0.00030136,120]
[373551044,1753038249206,161.17,0.000229,31]
[373551045,1753038249268,161.17,0.000229,31]
[373551046,1753038249753,161.17,0.000229,31]
[373551047,1753038250983,480.0,0.00030136,120]
[373551048,1753038251101,480.0,0.00030136,120]
[373551049,1753038251448,480.0,0.00030136,120]
[373551050,1753038251548,6732.87,0.00030136,120]
[373551051,1753038252852,9727.36,0.00030136,120]
[373551052,1753038253882,1483.34,0.00030136,120]
[373551053,1753038254367,480.0,0.00030136,120]
[373551054,1753038256251,738.74,0.00030136,120]
[373551055,1753038256285,480.0,0.00030136,120]
[373551056,1753038256366,480.0,0.00030136,120]
[373551057,1753038256575,480.0,0.00030136,120]
[373551058,1753038257117,480.0,0.00030136,120]
[373551059,1753038258139,1870.64,0.00030136,120]
[373551060,1753038258223,480.0,0.00030136,120]
[373551061,1753038258346,559.66,0.00030136,120]
[373551062,1753038259042,565.37,0.00030136,120]
[373551063,1753038260592,480.0,0.00030136,120]
[373551064,1753038260668,480.0,0.00030136,120]
[373551065,1753038260738,480.0,0.00030136,120]
[373551066,1753038261593,480.0,0.00030136,120]
[373551067,1753038261837,1039.67,0.00030136,120]
[373551068,1753038261990,516.71,0.00030136,120]
[373551069,1753038262626,1174.62,0.00030136,120]
[373551070,1753038263480,480.0,0.00030136,120]
[373551071,1753038263549,480.0,0.00030136,120]
[373551072,1753038264401,5650.17,0.00030136,120]
[373551073,1753038264441,8583.24,0.00030136,120]
[373551074,1753038264690,3352.28,0.00030136,120]
[373551075,1753038264831,480.0,0.00030136,120]
[373551076,1753038265589,480.0,0.00030136,120]
[373551077,1753038265750,973.08,0.00030136,120]
[373551078,1753038266729,1268.88,0.00030136,120]
[373551079,1753038266963,3261.0,0.00030136,120]
[373551080,1753038267016,709.4,0.00030136,120]
[373551081,1753038267077,480.0,0.00030136,120]
[373551082,1753038269563,573.47,0.00030136,120]
[373551083,1753038269602,1839.72,0.00030136,120]
[373551084,1753038269738,480.0,0.00030136,120]
[373551085,1753038270522,1316.48,0.00030136,120]
[373551086,1753038270757,480.0,0.00030136,120]
[373551087,1753038270943,919.14,0.00030136,120]
[373551088,1753038271069,9010.04,0.00030136,120]
[373551089,1753038271546,480.0,0.00030136,120]
[373551090,1753038272542,2547.57,0.00030136,120]
[373551091,1753038273482,480.0,0.00030136,120]
[373551092,1753038274099,480.0,0.00030136,120]
[373551093,1753038274158,480.0,0.00030136,120]
[373551094,1753038275768,500.0,0.00030136,120]
[373551095,1753038275941,480.0,0.00030136,120]
[373551096,1753038275982,500.0,0.00030136,120]
[373551097,1753038276257,402.72,0.00030136,120]
[373551098,1753038276674,6062.91,0.00030136,120]
[373551099,1753038277051,480.0,0.00030136,120]
[373551100,1753038277084,950.64,0.00030136,120]
[373551101,1753038277117,2932.25,0.00030136,120]
[373551102,1753038277723,480.0,0.00030136,120]
[373551103,1753038278587,1044.69,0.00030136,120]
[373551104,1753038278663,877.57,0.00030136,120]
[373551105,1753038279182,168.57441755,0.00030136,120]
[373551106,1753038280026,918.71,0.00030136,120]
[373551107,1753038280058,3933.77,0.00030136,120]
[373551108,1753038281018,480.0,0.00030136,120]
[373551109,1753038281099,490.81,0.00030136,120]
[373551110,1753038281238,856.88,0.00030136,120]
[373551111,1753038281356,3101.87,0.00030136,120]
[373551112,1753038282689,393.56351938,0.00030136,120]
[373551113,1753038282812,422.0480031,0.00030136,120]
[373551114,1753038283128,480.0,0.00030136,120]
[373551115,1753038284000,480.0,0.00030136,120]
[373551116,1753038286195,541.07,0.00030136,120]
[373551117,1753038286271,337.74754335,0.00030136,120]
[373551118,1753038287121,480.0,0.00030136,120]
[373551119,1753038287390,777.25,0.00030136,120]
[373551120,1753038287732,480.0,0.00030136,120]
[373551121,1753038289336,1602.04,0.00030136,120]
[373551122,1753038289630,480.0,0.00030136,120]
[373551123,1753038290495,480.0,0.00030136,120]
[373551124,1753038290648,480.0,0.00030136,120]
[373551125,1753038290893,480.0,0.00030136,120]
[373551126,1753038290987,360.0,0.00030136,120]
[373551127,1753038291469,1486.36,0.00030136,120]
[373551128,1753038292244,761.32,0.00030136,120]
[373551129,1753038292524,480.0,0.00030136,120]
[373551130,1753038292571,1914.13,0.00030136,120]
[373551131,1753038292610,706.22,0.00030136,120]
[373551132,1753038292936,480.0,0.00030136,120]
[373551133,1753038293079,480.0,0.00030136,120]
[373551134,1753038295835,2985.59,0.00030136,120]
[373551135,1753038295870,480.0,0.00030136,120]
[373551136,1753038295931,480.0,0.00030136,120]
[373551137,1753038296365,562.81,0.00030136,120]
[373551138,1753038297675,480.0,0.00030136,120]
[373551139,1753038297714,480.0,0.00030136,120]
[373551140,1753038297745,480.0,0.00030136,120]
[373551141,1753038297900,1588.08,0.00030136,120]
[373551142,1753038298087,967.35,0.00030136,120]
[373551143,1753038298287,3522.48,0.00030136,120]
[373551144,1753038298349,480.0,0.00030136,120]
[373551145,1753038298650,998.15,0.00030136,120]
[373551146,1753038299387,775.81,0.00030136,120]
[373551147,1753038300024,485.48,0.00030136,120]
[373551148,1753038300375,480.0,0.00030136,120]
[373551149,1753038300866,8977.97,0.00030136,120]
[373551150,1753038301185,604.65,0.00030136,120]
[373551151,1753038301836,480.0,0.00030136,120]
[373551152,1753038302037,480.0,0.00030136,120]
[373551153,1753038302731,480.0,0.00030136,120]
[373551154,1753038302861,480.0,0.00030136,120]
[373551155,1753038303352,480.0,0.00030136,120]
[373551156,1753038303536,480.0,0.00030136,120]
[373551157,1753038305401,480.0,0.00030136,120]
[373551158,1753038306597,561.48,0.00030136,120]
[373551159,1753038307855,480.0,0.00030136,120]
[373551160,1753038309445,480.0,0.00030136,120]
[373551161,1753038309664,728.29,0.00030136,120]
[373551162,1753038309701,2111.96,0.00030136,120]
[373551163,1753038310368,480.0,0.00030136,120]
[373551164,1753038311219,480.0,0.00030136,120]
[373551165,1753038311479,1973.53,0.00030136,120]
[373551166,1753038312206,2850.35,0.00030136,120]
[373551167,1753038312241,1763.06,0.00030136,120]
[373551168,1753038312820,480.0,0.00030136,120]
[373551169,1753038313153,349.79930758,0.00030136,120]
[373551170,1753038313693,14908.8,0.00030136,120]
[373551171,1753038313829,480.0,0.00030136,120]
[373551172,1753038314191,2975.73,0.00030136,120]
[373551173,1753038314636,813.09,0.00030136,120]
[373551174,1753038315020,480.0,0.00030136,120]
[373551175,1753038315130,480.0,0.00030136,120]
[373551176,1753038315169,480.0,0.00030136,120]
[373551177,1753038315210,2347.89,0.00030136,120]
[373551178,1753038315253,480.0,0.00030136,120]
[373551179,1753038316718,480.0,0.00030136,120]
[373551180,1753038317187,480.0,0.00030136,120]
[373551181,1753038318644,408.48183753,0.00030136,120]
[373551182,1753038319370,2017.87,0.00030136,120]
[373551183,1753038319449,359.11369275,0.00030136,120]
[373551184,1753038319871,2043.59,0.00030136,120]
[373551185,1753038321052,1434.02,0.00030136,120]
[373551186,1753038321092,480.0,0.00030136,120]
[373551187,1753038321126,834.41,0.00030136,120]
[373551188,1753038322120,480.0,0.00030136,120]
[373551189,1753038323405,480.0,0.00030136,120]
[373551190,1753038324093,1831.94,0.00030136,120]
[373551191,1753038324138,810.57,0.00030136,120]
[373551192,1753038325167,1143.79,0.00030136,120]
[373551193,1753038326181,6966.09,0.00030136,120]
[373551194,1753038326473,480.0,0.00030136,120]
[373551195,1753038327432,480.0,0.00030136,120]
[373551196,1753038327497,480.0,0.00030136,120]
[373551197,1753038327924,480.0,0.00030136,120]
[373551198,1753038328492,7901.81,0.00030136,120]
[373551199,1753038329247,1030.12,0.00030136,120]
[373551200,1753038329283,480.0,0.00030136,120]
[373551201,1753038329321,1491.56,0.00030136,120]
[373551202,1753038329481,485.08,0.00030136,120]
[373551203,1753038330510,480.0,0.00030136,120]
[373551204,1753038331702,480.0,0.00030136,120]
[373551205,1753038331789,480.0,0.00030136,120]
[373551206,1753038333122,480.0,0.00030136,120]
[373551207,1753038333236,480.0,0.00030136,120]
[373551208,1753038333656,729.0,0.00030136,120]
[373551209,1753038334589,754.62,0.00030136,120]
[373551210,1753038334990,784.71,0.00030136,120]
[373551211,1753038335023,1566.94,0.00030136,120]
[373551212,1753038335476,498.13910285,0.00030136,120]
[373551213,1753038335958,480.0,0.00030136,120]
[373551214,1753038336119,-166.12524817,0.00017433,2]
[373551215,1753038336140,-150.0,0.00017433,2]
[373551216,1753038336161,-150.0,0.00017433,2]
[373551217,1753038336182,-150.0,0.00017433,2]
[373551218,1753038336208,-281.09845424,0.00017449,2]
[373551219,1753038337070,480.0,0.00030136,120]
[373551220,1753038337302,480.0,0.00030136,120]
[373551221,1753038338008,480.0,0.00030136,120]
[373551222,1753038339064,480.0,0.00030136,120]
[373551223,1753038339364,480.0,0.00030136,120]
[373551224,1753038339804,480.0,0.00030136,120]
[373551225,1753038340073,1462.7,0.00030136,120]
[373551226,1753038341156,2213.94,0.00030136,120]
[373551227,1753038342262,3666.58,0.00030136,120]
[373551228,1753038343161,385.2181106,0.00030136,120]
[373551229,1753038343661,480.0,0.00030136,120]
[373551230,1753038344551,480.0,0.00030136,120]
[373551231,1753038344618,480.0,0.00030136,120]
[373551232,1753038344858,944.28,0.00030136,120]
[373551233,1753038345003,1951.19,0.00030136,120]
[373551234,1753038345340,480.0,0.00030136,120]
[373551235,1753038345878,4813.19,0.00030136,120]
[373551236,1753038346535,461.9299253,0.00030136,120]
[373551237,1753038346929,480.0,0.00030136,120]
[373551238,1753038346959,352.15621771,0.00030136,120]
[373551239,1753038346994,480.0,0.00030136,120]
[373551240,1753038347242,2023.96,0.00030136,120]
[373551241,1753038347948,480.0,0.00030136,120]
[373551242,1753038348592,574.41,0.00030136,120]
[373551243,1753038348764,480.0,0.00030136,120]
[373551244,1753038350160,480.0,0.00030136,120]
[373551245,1753038350307,742.2,0.00030136,120]
[373551246,1753038350630,2652.62,0.00030136,120]
[373551247,1753038352263,338.16782473,0.00030136,120]
[373551248,1753038352479,480.0,0.00030136,120]
[373551249,1753038353228,480.0,0.00030136,120]
[373551250,1753038353930,480.0,0.00030136,120]
[373551251,1753038355098,2409.94,0.00030136,120]
[373551252,1753038355252,1102.39,0.00030136,120]
[373551253,1753038355650,1710.14,0.00030136,120]
[373551254,1753038356253,2207.45,0.00030136,120]
[373551255,1753038356453,480.0,0.00030136,120]
[373551256,1753038356592,480.0,0.00030136,120]
[373551257,1753038356644,1243.41,0.00030136,120]
[373551258,1753038356723,1958.44,0.00030136,120]
[373551259,1753038356996,480.0,0.00030136,120]
[373551260,1753038357028,1356.26,0.00030136,120]
[373551261,1753038357563,680.35,0.00030136,120]
[373551262,1753038357929,2868.33,0.00030136,120]
[373551263,1753038358144,223.75503285,0.00030136,120]
[373551264,1753038359313,480.0,0.00030136,120]
[373551265,1753038360379,3172.22,0.00030136,120]
[373551266,1753038361732,723.18,0.00030136,120]
[373551267,1753038361927,744.21,0.00030136,120]
[373551268,1753038362301,444.35097797,0.00030136,120]
[373551269,1753038363121,480.0,0.00030136,120]
[373551270,1753038363230,786.28,0.00030136,120]
[373551271,1753038363505,786.28,0.00030136,120]
[373551272,1753038364016,4267.39,0.00030136,120]
[373551273,1753038364049,480.0,0.00030136,120]
[373551274,1753038364098,2161.96,0.00030136,120]
[373551275,1753038364312,480.0,0.00030136,120]
[373551276,1753038364405,480.0,0.00030136,120]
[373551277,1753038364784,786.28,0.00030136,120]
[373551278,1753038365028,786.28,0.00030136,120]
[373551279,1753038365271,786.28,0.00030136,120]
[373551280,1753038365497,786.28,0.00030136,120]
[373551281,1753038365600,480.0,0.00030136,120]
[373551282,1753038365685,480.0,0.00030136,120]
[373551283,1753038365740,786.28,0.00030136,120]
[373551284,1753038365986,786.28,0.00030136,120]
[373551285,1753038366132,480.0,0.00030136,120]
[373551286,1753038366568,786.28,0.00030136,120]
[373551287,1753038366808,786.28,0.00030136,120]
[373551288,1753038367417,786.28,0.00030136,120]
[373551289,1753038367662,786.28,0.00030136,120]
[373551290,1753038367894,786.28,0.00030136,120]
[373551291,1753038368153,654.23,0.00030136,120]
[373551292,1753038368212,3355.62,0.00030136,120]
[373551293,1753038368245,786.28,0.00030136,120]
[373551294,1753038368289,480.0,0.00030136,120]
[373551295,1753038368456,786.28,0.00030136,120]
[373551296,1753038368759,786.28,0.00030136,120]
[373551297,1753038368985,786.28,0.00030136,120]
[373551298,1753038370021,786.28,0.00030136,120]
[373551299,1753038370087,786.28,0.00030136,120]
[373551300,1753038370161,786.28,0.00030136,120]
[373551301,1753038370215,786.28,0.00030136,120]
[373551302,1753038370277,786.28,0.00030136,120]
[373551303,1753038370550,786.28,0.00030136,120]
[373551304,1753038370793,480.0,0.00030136,120]
[373551305,1753038370825,786.43,0.00030136,120]
[373551306,1753038371965,7438.81,0.00030136,120]
[373551307,1753038372039,1519.2,0.00030136,120]
[373551308,1753038372110,1743.42,0.00030136,120]
[373551309,1753038372593,480.0,0.00030136,120]
[373551310,1753038374202,480.0,0.00030136,120]
[373551311,1753038374642,480.0,0.00030136,120]
[373551312,1753038374706,480.0,0.00030136,120]
[373551313,1753038374962,480.0,0.00030136,120]
[373551314,1753038375084,1358.74,0.00030136,120]
[373551315,1753038375216,480.0,0.00030136,120]
[373551316,1753038375804,8218.13,0.00030136,120]
[373551317,1753038376763,4611.35,0.00030136,120]
[373551318,1753038376910,442.75228312,0.00030136,120]
[373551319,1753038377145,480.0,0.00030136,120]
[373551320,1753038377177,480.0,0.00030136,120]
[373551321,1753038377776,2121.7,0.00030136,120]
[373551322,1753038377953,2589.84,0.00030136,120]
[373551323,1753038378486,460.0,0.00030136,120]
[373551324,1753038379057,480.0,0.00030136,120]
[373551325,1753038379241,480.0,0.00030136,120]
[373551326,1753038379385,480.0,0.00030136,120]
[373551327,1753038380558,1035.84,0.00030136,120]
[373551328,1753038380593,630.64,0.00030136,120]
[373551329,1753038380629,480.0,0.00030136,120]
[373551330,1753038380667,480.0,0.00030136,120]
[373551331,1753038380728,1764.58,0.00030136,120]
[373551332,1753038381157,480.0,0.00030136,120]
[373551333,1753038381524,480.0,0.00030136,120]
[373551334,1753038381647,1638.88,0.00030136,120]
[373551335,1753038381943,1152.6,0.00030136,120]
[373551336,1753038382315,3244.95,0.00030136,120]
[373551337,1753038382862,5175.74,0.00030136,120]
[373551338,1753038383881,480.0,0.00030136,120]
[373551339,1753038384148,1387.09,0.00030136,120]
[373551340,1753038384371,444.24252962,0.00030136,120]
[373551341,1753038384968,516.68,0.00030136,120]
[373551342,1753038386268,480.0,0.00030136,120]
[373551343,1753038386381,480.0,0.00030136,120]
[373551344,1753038386959,823.04,0.00030136,120]
[373551345,1753038387438,480.0,0.00030136,120]
[373551346,1753038387671,480.0,0.00030136,120]
[373551347,1753038388145,480.0,0.00030136,120]
[373551348,1753038388248,566.47,0.00030136,120]
[373551349,1753038388844,786.94,0.00030136,120]
[373551350,1753038390106,467.20888561,0.00030136,120]
[373551351,1753038390275,800.08,0.00030136,120]
[373551352,1753038391463,1470.55,0.00030136,120]
[373551353,1753038392353,480.0,0.00030136,120]
[373551354,1753038392967,1717.38,0.00030136,120]
[373551355,1753038393653,519.16,0.00030136,120]
[373551356,1753038394636,1458.16,0.00030136,120]
[373551357,1753038394992,480.0,0.00030136,120]
[373551358,1753038395527,3628.86,0.00030136,120]
[373551359,1753038396519,3950.31,0.00030136,120]
[373551360,1753038397529,480.0,0.00030136,120]
[373551361,1753038397700,460.78601271,0.00030136,120]
[373551362,1753038397736,480.0,0.00030136,120]
[373551363,1753038397771,4089.58,0.00030136,120]
[373551364,1753038398148,480.0,0.00030136,120]
[373551365,1753038398263,9259.36,0.00030136,120]
[373551366,1753038398939,3134.79,0.00030136,120]
[373551367,1753038399124,480.0,0.00030136,120]
[373551368,1753038399238,637.8,0.00030136,120]
[373551369,1753038399751,480.0,0.00030136,120]
[373551370,1753038400237,1054.02,0.00030136,120]
[373551371,1753038400319,442.75101937,0.00030136,120]
[373551372,1753038401942,2403.95,0.00030136,120]
[373551373,1753038401981,1342.66,0.00030136,120]
[373551374,1753038402039,2481.93,0.00030136,120]
[373551375,1753038402128,2186.98,0.00030136,120]
[373551376,1753038402643,480.0,0.00030136,120]
[373551377,1753038403211,455.23738126,0.00030136,120]
[373551378,1753038404984,460.0,0.00030136,120]
[373551379,1753038405581,1816.67,0.00030136,120]
[373551380,1753038405672,1700.08,0.00030136,120]
[373551381,1753038405926,480.0,0.00030136,120]
[373551382,1753038406958,3152.34,0.00030136,120]
[373551383,1753038407541,460.0,0.00030136,120]
[373551384,1753038407725,618.11544498,0.00023,30]
[373551385,1753038408724,480.0,0.00030136,120]
[373551386,1753038408758,480.0,0.00030136,120]
[373551387,1753038409349,480.0,0.00030136,120]
[373551388,1753038409663,480.0,0.00030136,120]
[373551389,1753038409974,8634.62,0.00030136,120]
[373551390,1753038410075,3900.61,0.00030136,120]
[373551391,1753038410154,1303.71,0.00030136,120]
[373551392,1753038410592,836.74,0.00030136,120]
[373551393,1753038410817,480.0,0.00030136,120]
[373551394,1753038411141,2432.54,0.00030136,120]
[373551395,1753038411603,480.0,0.00030136,120]
[373551396,1753038411758,460.0,0.00030136,120]
[373551397,1753038412482,644.94,0.00030136,120]
[373551398,1753038412534,480.0,0.00030136,120]
[373551399,1753038412599,3738.08,0.00030136,120]
[373551400,1753038413349,5917.46,0.00030136,120]
[373551401,1753038414446,460.0,0.00030136,120]
[373551402,1753038415140,527.36,0.00030136,120]
[373551403,1753038416110,460.0,0.00030136,120]
[373551404,1753038416345,695.07,0.00030136,120]
[373551405,1753038417913,480.0,0.00030136,120]
[373551406,1753038417957,3169.86,0.00030136,120]
[373551407,1753038418336,480.0,0.00030136,120]
[373551408,1753038418954,712.52,0.00030136,120]
[373551409,1753038420403,460.0,0.00030136,120]
[373551410,1753038420452,4108.81,0.00030136,120]
[373551411,1753038420501,1843.88,0.00030136,120]
[373551412,1753038420985,440.0,0.00030136,120]
[373551413,1753038421367,422.35952837,0.00030136,120]
[373551414,1753038422146,480.0,0.00030136,120]
[373551415,1753038422198,480.0,0.00030136,120]
[373551416,1753038422303,480.0,0.00030136,120]
[373551417,1753038422404,2510.19,0.00030136,120]
[373551418,1753038423548,480.0,0.00030136,120]
[373551419,1753038423587,1494.46,0.00030136,120]
[373551420,1753038423681,480.0,0.00030136,120]
[373551421,1753038424977,583.35,0.00030136,120]
[373551422,1753038425014,1819.53,0.00030136,120]
[373551423,1753038425049,881.06,0.00030136,120]
[373551424,1753038426631,-227.90154576,0.00017449,2]
[373551425,1753038426658,-183.682716,0.000175,2]
[373551426,1753038426680,-323.0,0.000175,2]
[373551427,1753038426703,-417.75171852,0.00017616,2]
[373551428,1753038426737,813.04,0.00030136,120]
[373551429,1753038427556,440.0,0.00030136,120]
[373551430,1753038427860,1268.7,0.00030136,120]
[373551431,1753038428606,685.84,0.00030136,120]
[373551432,1753038430151,480.0,0.00030136,120]
[373551433,1753038430353,480.0,0.00030136,120]
[373551434,1753038430815,480.0,0.00030136,120]
[373551435,1753038431645,3766.41,0.00030136,120]
[373551436,1753038432164,460.0,0.00030136,120]
[373551437,1753038432974,480.0,0.00030136,120]
[373551438,1753038433441,480.0,0.00030136,120]
[373551439,1753038434295,539.88,0.00030136,120]
[373551440,1753038434805,2900.07,0.00030136,120]
[373551441,1753038436123,480.0,0.00030136,120]
[373551442,1753038436520,480.0,0.00030136,120]
[373551443,1753038436671,2473.41,0.00030136,120]
[373551444,1753038437285,2268.13,0.00030136,120]
[373551445,1753038437438,515.72,0.00030136,120]
[373551446,1753038437541,384.49329669,0.00030136,120]